Cogmind - Beta 14 @@@ ROGUE MODE // 2024.10.05 @ 15:39:35 Player: Corvi Result: Destroyed by Y-54 Guardian with Gatling Laser Performance ------------- Evolutions (0) 0 Regions Visited (3) 600 Robots Destroyed (27) 135 Value Destroyed (781) 781 Prototype IDs (3) 60 Alien Tech Used (0) 0 Bonus (0) 0 TOTAL SCORE: 1576 Bonus ------- None Cogmind --------- Core Integrity 0/250 Matter 300/300 Energy 146/150 System Corruption 0% Temperature Cool (14) Movement Walking (130) Location -7/Recycling Parts ------- > --- POWER (1) -------- Micro Nuclear Core > --- PROPULSION (2) --- Titanium Leg Improved Titanium Leg > --- UTILITY (2) ------ Small Storage Unit Visual Processing Unit > --- WEAPON (2) ------- EM Shotgun Makeshift Sword > --- INVENTORY (8) ---- VTOL Module Subdweller Optics Authchip [Processor] EM Shotgun Subdweller Machine Gun Proton Missile Launcher Scrap Shield Fragment (49) Scrap Shield Fragment (46) Peak State ------------ > --- POWER ------------ Micro Nuclear Core > --- PROPULSION ------- Titanium Leg Improved Titanium Leg > --- UTILITY ---------- Small Storage Unit Visual Processing Unit > --- WEAPON ----------- EM Shotgun Makeshift Sword > --- INVENTORY -------- VTOL Module Subdweller Optics Authchip [Processor] EM Shotgun Subdweller Machine Gun Proton Missile Launcher Scrap Shield Fragment Scrap Shield Fragment [Rating: 22] Favorites ----------- Power Light Ion Engine Engine Light Ion Engine Power Core Micro Nuclear Core Propulsion Light Treads Treads Light Treads Leg Improved Aluminum Leg Utility Small Storage Unit Device Heat Sink Storage Small Storage Unit Processor Visual Processing Unit Weapon EM Shotgun Energy Gun EM Shotgun Ballistic Gun Light Assault Rifle Launcher Grenade Launcher Impact Weapon Hammer Slashing Weapon Makeshift Sword Build | -11 -10 -10 -7 ------- Run | Yrd Mat Sub Rec Slots Evolved . | . . . . Power . | . . . . Propulsion . | . . . . Utility . | . . . . Weapon . | . . . . Parts Attached 35 | 5 17 10 3 Power 5 | 1 2 1 1 Engine 4 | 1 2 1 . Core 1 | . . . 1 Reactor . | . . . . Propulsion 8 | 2 2 2 2 Treads 4 | 2 2 . . Leg 4 | . . 2 2 Wheel . | . . . . Hover . | . . . . Flight . | . . . . Utility 3 | 1 2 . . Device 1 | . 1 . . Storage 1 | 1 . . . Processor 1 | . 1 . . Hackware . | . . . . Protection . | . . . . Artifact . | . . . . Weapon 19 | 1 11 7 . Energy Gun 11 | . 8 3 . Energy Cannon . | . . . . Ballistic Gun 1 | 1 . . . Ballistic Cannon . | . . . . Launcher 4 | . 3 1 . Special Weapon . | . . . . Impact Weapon 1 | . . 1 . Slashing Weapon 2 | . . 2 . Piercing Weapon . | . . . . Special Melee Weapon . | . . . . Unidentified Prototypes . | . . . . Parts Lost 2 | . 2 . . Power 1 | . 1 . . Propulsion . | . . . . Utility . | . . . . Weapon 1 | . 1 . . Highest Loss Streak 2 | . 2 . . To Critical Strikes . | . . . . Average Slot Usage (%) 98 | . 95 99 100 Engine 13 | . 12 14 11 Treads 21 | . 27 25 . Leg 6 | . . 2 28 Storage 14 | . 14 14 14 Processor 13 | . 11 14 14 Energy Gun 15 | . 18 14 14 Ballistic Gun 2 | . 6 . . Launcher 6 | . 1 11 . Slashing Weapon 3 | . . 1 14 Peak Build Rating 22 | 5 11 16 22 Average Rating 11 | 3 8 10 18 On Entrance 7 | . 5 10 16 Naked Turns . | . . . . Heaviest Build 16 | 11 16 16 16 Greatest Support 40 | 40 40 40 37 Greatest Overweight (x) . | . . . . Average Overweight (x) . | . . . . Largest Inventory Capacity 8 | 8 8 8 8 Average Capacity 7 | 6 8 8 8 Most Carried 8 | 1 8 8 8 Average Carried 6 | . 4 7 8 Final Capacity 8 | 8 8 8 8 Final Carried 8 | 1 8 8 8 Class Distribution -------------------- 53% | Mutant 46% | Scavenger-Mutant Dominant Class ---------------- Mutant | -10/Materials Scavenger-Mutant | -10/Subcaves Mutant | -7/Recycling Resources | -11 -10 -10 -7 ----------- Run | Yrd Mat Sub Rec Matter Collected 763 | 192 301 240 30 Remotely . | . . . . Salvage Created 1262 | . 641 295 326 Parts 50 | . 31 17 2 Haulers Intercepted 1 | . 1 . . Recyclers Shooed 1 | . 1 . . Parts Field Recycled . | . . . . Retrieved Matter . | . . . . Parts Self-Destructed 4 | . . 4 . Prevented 2 | . . 2 . Kills | -11 -10 -10 -7 ------- Run | Yrd Mat Sub Rec Combat Hostiles Destroyed 19 | . 11 8 . Guns 13 | . 9 4 . AOE 5 | . 2 3 . Classes Destroyed 8 | . 7 1 . Worker 1 | . 1 . . Tunneler 1 | . 1 . . Hauler 1 | . 1 . . Recycler 3 | . 2 . 1 Operator 1 | . 1 . . Watcher 1 | . 1 . . Grunt 13 | . 11 2 . Subdweller 6 | . . 6 . Best Kill Streak 4 | . 4 2 1 Combat Bots Only 3 | . 3 2 . Max Kills in Single Turn 2 | . 2 1 1 Gunslinging 1 | . 1 . . Exploded 1 | . 1 1 . Melee . | . . . . Uniques/NPCs Destroyed . | . . . . Combat | -11 -10 -10 -7 -------- Run | Yrd Mat Sub Rec Hostile Shots Fired 97 | . 60 34 3 Missed 27 | . 16 10 1 Damage Taken 1053 | . 528 504 21 Core 254 | . 70 174 10 Absorbed by Shields . | . . . . Core Remaining (%) 100 | 100 . . . Volleys Fired 77 | . 59 18 . Largest 2 | . 2 2 . Hottest 90 | . 90 90 . Shots Fired 138 | . 107 31 . Gun 119 | . 98 21 . Cannon . | . . . . Launcher 19 | . 9 10 . Special . | . . . . Kinetic 36 | . 36 . . Thermal 34 | . 34 . . Explosive 19 | . 9 10 . Electromagnetic 49 | . 28 21 . Robot Hit Streak 11 | . 8 11 . Robot Miss Streak 4 | . 4 2 . Penetration Max . | . . . . Secondary Targets 4 | . 3 1 . Max Gunslinging Chain 1 | . 1 1 . Shots Hit Robots 110 | . 72 30 8 Core Hits 65 | . 43 19 3 Critical Kills . | . . . . Critical Parts Destroyed 1 | . . 1 . Critical Strikes 4 | . . 4 . Smash 4 | . . 4 . Melee Attacks 26 | . . 18 8 Impact 13 | . . 13 . Slashing 13 | . . 5 8 Piercing . | . . . . Sneak Attacks 1 | . . . 1 Combat Hostiles . | . . . . Follow-up Attacks . | . . . . Damage Inflicted 2270 | 3 1026 675 566 Guns 960 | . 727 233 . Cannons . | . . . . Explosions 514 | . 299 215 . Melee 793 | . . 227 566 Ramming 3 | 3 . . . Kinetic 209 | . 209 . . Thermal 242 | . 242 . . Explosive 514 | . 299 215 . Electromagnetic 509 | . 276 233 . Impact 227 | . . 227 . Slashing 566 | . . . 566 Piercing . | . . . . Highest Corruption . | . . . . Average Corruption . | . . . . Corruption Purged . | . . . . Corruption Blocked . | . . . . Overload Shots . | . . . . Overflow Damage 149 | . . 15 134 Projectiles . | . . . . Explosions . | . . . . Melee 149 | . . 15 134 Knockbacks 5 | . . 5 . Impact 5 | . . 5 . Kinetic . | . . . . Secondary . | . . . . Self-Inflicted Damage 78 | . . 78 . Shots 5 | . . 5 . Rammed 1 | 1 . . . Targets Rammed 1 | 1 . . . Kicked . | . . . . Crushed . | . . . . Highest Temperature 144 | . 144 . . Average Temperature 53 | . 53 . . Received Heat Transfer 444 | . 309 123 12 Siege Activations . | . . . . Robots Corrupted 1 | . . 1 . Combat Hostiles 1 | . . 1 . Parts Fried 2 | . 1 1 . Impact Corruptions 1 | . . 1 . Robots Melted . | . . . . Combat Hostiles . | . . . . Parts Melted 1 | . 1 . . Heat Transferred 550 | . 550 . . Parts Sabotaged . | . . . . Parts Stolen . | . . . . Parts Stripped . | . . . . Power Chain Reactions . | . . . . Alert | -11 -10 -10 -7 ------- Run | Yrd Mat Sub Rec Peak Influence 190 | . 190 . 40 Initial 21 | . . . 21 Average 44 | . 60 . 21 Maximum Alert Level . | . . . . Low Security (%) 100 | 100 100 . 100 Level 1 . | . . . . Level 2 . | . . . . Level 3 . | . . . . Level 4 . | . . . . Level 5 . | . . . . High Security . | . . . . Max Security . | . . . . Squads Dispatched 4 | . 4 . . Investigation 3 | . 3 . . Extermination . | . . . . Reinforcement 1 | . 1 . . Assault . | . . . . Garrison . | . . . . Intercept . | . . . . Searches Triggered . | . . . . Construction Impeded . | . . . . Haulers Reinforced . | . . . . Active Scanning Responses . | . . . . Cargo Convoy Interrupts . | . . . . Stealth | -11 -10 -10 -7 --------- Run | Yrd Mat Sub Rec Distress Signals 1 | . 1 . . Communications Jammed . | . . . . Distress Signals . | . . . . Times Spotted 39 | . 21 17 1 Peak Tracking Total 6 | . 3 6 1 Tactical Retreats 2 | . 1 1 . Traps | -11 -10 -10 -7 ------- Run | Yrd Mat Sub Rec Traps Triggered 2 | . 2 . . Indirectly . | . . . . Trap Hack Attempts . | . . . . Triggered . | . . . . Disarmed . | . . . . Reprogrammed . | . . . . Reused . | . . . . Traps Extracted . | . . . . Installed . | . . . . Triggered 2 | . . 2 . Machines | -11 -10 -10 -7 ---------- Run | Yrd Mat Sub Rec Machines Disabled . | . . . . Max in Single Turn . | . . . . Machines Repaired . | . . . . Machines Dismantled . | . . . . Machines Sabotaged . | . . . . Overloaded Fab Kills . | . . . . Hacking | -11 -10 -10 -7 --------- Run | Yrd Mat Sub Rec Machines Accessed 11 | . 6 . 5 Terminals 9 | . 5 . 4 Fabricators . | . . . . Repair Stations . | . . . . Recycling Units 2 | . 1 . 1 Scanalyzers . | . . . . Garrison Access . | . . . . Total Hacks 23 | . 15 . 8 Successful 11 | . 7 . 4 Failed 12 | . 8 . 4 Catastrophic 2 | . . . 2 Database Lockouts . | . . . . Manual 13 | . 11 . 2 Terminals 21 | . 14 . 7 Fabricators . | . . . . Repair Stations . | . . . . Recycling Units 2 | . 1 . 1 Scanalyzers . | . . . . Garrison Access . | . . . . Terminal Hacks 7 | . 4 . 3 Robot Analysis 3 | . 2 . 1 Prototype ID Bank 1 | . . . 1 Alert Level 2 | . 1 . 1 Unreport Threat 1 | . 1 . . Fabricator Hacks . | . . . . Repair Station Hacks . | . . . . Recycling Unit Hacks 2 | . 1 . 1 Report Inventory 2 | . 1 . 1 Scanalyzer . | . . . . Garrison Access Hacks . | . . . . Unauthorized Hacks 2 | . 2 . . Terminals 2 | . 2 . . Botnet 1 | . 1 . . Operators 1 | . 1 . . Fabricators . | . . . . Repair Stations . | . . . . Recycling Units . | . . . . Scanalyzers . | . . . . Garrison Access . | . . . . Data Cores Recovered . | . . . . Used . | . . . . Hacking Detections 7 | . 4 . 3 Full Trace Events 3 | . 1 . 2 Feedback Events . | . . . . Feedback Blocked . | . . . . Robot Schematics Acquired . | . . . . Robots Built . | . . . . Authchips . | . . . . Time . | . . . . Total Robot Build Rating . | . . . . Part Schematics Acquired . | . . . . Parts Built . | . . . . Authchips . | . . . . Time . | . . . . Total Part Build Rating . | . . . . Parts Repaired . | . . . . Time . | . . . . Parts Recycled . | . . . . Recycled Matter . | . . . . Retrieved Matter . | . . . . Retrieved Components . | . . . . Parts Scanalyzed . | . . . . Part Schematics Acquired . | . . . . Parts Damaged . | . . . . Bothacking | -11 -10 -10 -7 ------------ Run | Yrd Mat Sub Rec Used RIF Installer . | . . . . Robots Hacked . | . . . . Non-combat . | . . . . Combat . | . . . . Robot Hacks Applied . | . . . . Relay Couplers Released . | . . . . Fabnet Peak Effective % . | . . . . Robots Rewired . | . . . . Allies Hacked . | . . . . Hacks Repelled . | . . . . Allies | -11 -10 -10 -7 -------- Run | Yrd Mat Sub Rec Total Allies . | . . . . Largest Group . | . . . . Highest-Rated Group . | . . . . Highest-Rated Ally . | . . . . Total Orders . | . . . . Ally Attacks . | . . . . Total Damage . | . . . . Kills . | . . . . Allies Corrupted . | . . . . Allies Melted . | . . . . Intel | -11 -10 -10 -7 ------- Run | Yrd Mat Sub Rec Robot Analysis Total 3 | . 2 . 1 Derelict Logs Recovered 1 | . . 1 . Drone Launches . | . . . . Drone Recoveries . | . . . . Exploration | -11 -10 -10 -7 ------------- Run | Yrd Mat Sub Rec Turns Passed 4329 | 106 1402 2050 771 Spaces Moved 2559 | 64 677 1223 595 Core 5 | 5 . . . Treads 1833 | 59 677 1097 . Legs 721 | . . 126 595 Wheels . | . . . . Hover . | . . . . Flight . | . . . . Fastest Speed 50 | 50 160 120 120 Average Speed 149 | 151 160 155 124 Slowest Speed 160 | 160 160 160 130 Overloaded Moves . | . . . . Propulsion Burnouts . | . . . . Robots Hopped . | . . . . Cave-ins Triggered . | . . . . Exploration Rate (%) 54 | 6 84 59 70 Regions Visited 3 Branch Regions 2 Pre-discovered Areas 1 | . . 1 . Known Exits Taken . | . . . . Unknown Exits Taken 3 | 1 1 1 . Scrap Searched 1 | . . 1 . Spaces Dug 11 | . 9 2 . Terrain Destroyed 93 | . 43 50 . Melee 2 | . . 2 . Projectile . | . . . . AOE 91 | . 43 48 . Terrain Rammed . | . . . . Walls Destroyed . | . . . . Machines Disabled . | . . . . Actions | -11 -10 -10 -7 --------- Run | Yrd Mat Sub Rec Total 2888 | 70 894 1307 617 Wait 154 | . 123 29 2 Move 2557 | 64 676 1222 595 Hop . | . . . . Pick Up 18 | 1 10 4 3 Fast Attach 20 | 5 10 2 3 Attach 7 | . 4 3 . Detach 1 | . 1 . . Swap 8 | . 3 5 . Drop 20 | . 8 6 6 Fire 77 | . 59 18 . Melee 26 | . . 18 8 Ram . | . . . . Kick . | . . . . Crush . | . . . . Escape Stasis . | . . . . Rewire . | . . . . Trap . | . . . . Miscellaneous . | . . . . Route ------- -11/Scrapyard -10/Materials (discovered 5 exits: [*Mat x3] / [*Min] / [*Sub]) -10/Subcaves (discovered 2 exits: [*Mat] / *Rec) -7/Recycling (discovered 1 exit: [*Fac]) History --------- Turn | Location | Event 28 | -11/Scrapyard | Discovered new exit (range 16) 107 | -11/Scrapyard | Entered Materials 305 | -10/Materials | Build established: Mutant 413 | -10/Materials | Discovered new exit (range 4) 819 | -10/Materials | Discovered new exit (range 17) 983 | -10/Materials | Discovered new exit (range 12) 1178 | -10/Materials | Discovered new exit (range 14) 1481 | -10/Materials | Discovered new exit (range 11) 1509 | -10/Materials | Entered Subcaves 1684 | -10/Subcaves | Build established: Scavenger-Mutant 2392 | -10/Subcaves | Discovered new exit (range 8) 2741 | -10/Subcaves | Learned location of Zion (-7) 2741 | -10/Subcaves | Met a Zionite searching for "candidates" 2818 | -10/Subcaves | Learned 2 Materials zone layouts 2889 | -10/Subcaves | Disturbed a concealed Subdweller 3114 | -10/Subcaves | A swath of the cavern ceiling suddenly collapsed 3294 | -10/Subcaves | Core integrity fell below 50% 3373 | -10/Subcaves | Core integrity fell below 20% 3556 | -10/Subcaves | Discovered new exit (range 3) 3559 | -10/Subcaves | Entered Recycling 3676 | -7/Recycling | Build established: Mutant 4049 | -7/Recycling | Discovered new exit (range 8) 4330 | -7/Recycling | Destroyed by Y-54 Guardian with Gatling Laser Last Messages --------------- Sneak attack on R-06 Scavenger. R-06 Scavenger destroyed. Acquired 10 matter. Sneak attack on R-06 Scavenger. Destroyed Lgt. Ion Engine. Destroyed Com. Wheel. Sneak attack on R-06 Scavenger. Destroyed Com. Wheel. R-06 Scavenger collects Com. Wheel. Sneak attack on R-06 Scavenger. R-06 Scavenger destroyed. Connecting with Terminal... >>Alert(Check) Current Alert Level: Low Security >>Prototypes Downloading prototype IDs... Mni. Assault Cannon Shock Maul Cld. Plasma Cannon Y-54 Guardian springs to life. Map ----- +----------------------------------------------------+ | ?????????????????????????????????????????????????? | | ?????????????????????????????????????????????????? | | ?????????????????????????????????????????????????? | | ?????????????????????????????????????????????????? | | ?????????????????????????????????????????????????? | | ?????????????????????????????????????????????????? | | ?????????????????????????????????????????????????? | | ?????????????????????????????????????????????????? | | ?????????????????????????????????????????????????? | | ?????????????????????????????????????????????????? | | ???????????????????????????????#?????????????????? | | ?????????????????????????????? #?????????????????? | | ?????????????????????##??????? ##????????????????? | | ?????????????????????+ #????? ?????????????????? | | ?????????????????????# #????? Y#?????????????????? | | ?????????????????????# #????? #?????????????????? | | ?????????????????????# #???? #?????????????????? | | ?????????????????????# #???? #?????????????????? | | ?????????????????????# ##### #?????????????????? | | ?????????????????????# #?????????????????? | | #?#########?#####????# #?????????????????? | | #?# %#?# ###### +?????????????????? | | #?# ##?# #?????????????????? | | ### #??# ######### +?????????????????? | | ##% #??## ##???????# #?????????????????? | | ### #???# #????????#@ #?????????????????? | | #?# #???# #????????#/###+##?????????????????? | | #?# #???# #???????? ??????????????????????? | | #####+##+##### #???????? "??????????????????????? | | + #??????? """?????????????????????? | | ##### #??????? ?????????????????????? | | ????# """ #??????# r ????????????????????? | | ????# "T #??????# ????????????????????? | | ????# """ #??????# """ ???????????????????? | | ##### #??????# "Y ???????????????????? | | #??????# """ ??????????????????? | | #######" "######??????# ?? ??????????????????? | | ??????#"T"#???????????##???##????????????????????? | | ??????#"""#??????????????????????????????????????? | | ??????#####??????????????????????????????????????? | | | | | | | | | | | | | | | | | | | | | +----------------------------------------------------+ Best States ------------- Heat Dissipation 35 Energy Generation 15 Energy Capacity 250 Matter Stores 300 Matter Capacity 300 Sight Range 18 Terrain Scan Density 10 Evasion (%) 55 Recoil Reduction 2 Authchip Count 1 Item Schematics ----------------- None Robot Schematics ------------------ None Fabricated ------------ Nothing Alien Tech Used ----------------- None Achievements -------------- None Challenges ------------ None Game ------ Seed PrecisionSurveybotGravjet Manual? 0 Play Time 00:26:00 Cumulative 47.3 hours Start 2024.10.05 @ 15:15:26 End 2024.10.05 @ 15:39:35 Sessions 1 Manual Loads 0 Difficulty Rogue Special Mode None Game No. 61 Rogue 61 Adventurer 0 Explorer 0 Win Type - Total 0 Types 0/0/0/0/0/0/0/0/0 Lore% 29 Gallery% 40 Achievement% 35 Wizard Run 0 Options --------- Layout 0 ASCII 0 Keyboard 0 Movement Arrows Keybinds 0 Fullscreen 1 Font 18/SmallcapsGlow Map View 76x50 Zoom Use 0% Tactical HUD 0 Map Filters NONE Filters NONE Steam 0 RUN: 8c852f0f-e2e6-4a3a-bd6b-75dd00fefa29